bitfinex/quotes_ETHUSD_20250525
["timestamp","ask_amount","ask_price","bid_price","bid_amount"]
[1748132863087,0.8274,2528.8,2528.7,11.837]
[1748132866278,0.05,2528.9,2528.7,19.837]
[1748132866499,0.05,2528.9,2528.8,8.0]
[1748132867488,0.05,2528.9,2528.8,46.67]
[1748132867666,0.05,2528.9,2528.8,23.7783]
[1748132867861,0.05,2528.9,2528.8,8.7813]
[1748132868759,0.05,2528.9,2528.8,9.15649553]
[1748132869566,0.05,2528.9,2528.8,1.15649553]
[1748132869768,0.05,2528.9,2528.8,12.99149553]
[1748132870120,0.05,2528.9,2528.8,9.15649553]
[1748132870295,0.05,2528.9,2528.8,22.00423548]
[1748132872512,0.05,2528.9,2528.8,10.16923548]
[1748132872805,0.05,2528.9,2528.8,22.00323548]
[1748132876704,0.05,2528.9,2528.8,22.00223548]
[1748132877548,0.05,2528.9,2528.8,60.65023548]
[1748132877857,0.05,2528.9,2528.8,37.53423548]
[1748132878509,0.05,2528.9,2528.8,22.55223548]
[1748132879462,0.05,2528.9,2528.8,23.02313945]
[1748132879953,0.8254,2529.9,2529.0,0.7981]
[1748132881482,0.8254,2529.9,2529.1,0.8460995]
[1748132882750,0.8254,2529.9,2529.2,0.37519553]
[1748132883680,0.8254,2529.9,2529.3,0.37519553]
[1748132885178,0.8254,2529.9,2529.4,0.37519553]
[1748132886393,0.8254,2529.9,2529.5,0.37519553]
[1748132887494,0.8254,2529.9,2529.6,38.642]
[1748132887698,0.8254,2529.9,2529.7,1.01273995]
[1748132888197,0.8254,2529.9,2529.8,11.831]
[1748132891051,0.05,2529.9,2529.8,19.831]
[1748132891457,0.8068,2529.9,2529.8,19.831]
[1748132891773,0.8068,2529.9,2529.1,1.22360397]
[1748132891975,0.8068,2529.9,2529.2,11.83]
[1748132892151,0.8068,2529.9,2529.3,8.0]
[1748132895511,0.8068,2529.9,2529.4,0.37605546]
[1748132896954,0.8068,2529.9,2529.3,8.0]
[1748132896955,0.8068,2529.9,2529.5,0.37605546]
[1748132897582,0.8068,2529.9,2529.7,8.0]
[1748132898702,0.8068,2529.9,2529.3,8.0]
[1748132899499,0.8068,2529.9,2529.4,0.37655846]
[1748132900702,0.8068,2529.9,2529.5,0.37655846]
[1748132900905,0.05,2529.9,2529.6,0.80712261]
[1748132901109,0.05,2529.9,2529.6,0.7676]
[1748132901704,0.05,2529.9,2529.6,0.80711886]
[1748132901906,0.05,2529.9,2529.6,0.7676]
[1748132902382,0.05,2529.9,2529.7,0.37655846]
[1748132903583,0.05,2529.9,2529.8,0.37655846]
[1748132904112,0.05,2529.9,2529.8,2.08682097]
[1748132904406,0.05,2529.9,2529.8,1.98944226]
[1748132904909,0.05,2529.9,2529.8,1.94993095]
[1748132905529,0.8094,2530.8,2529.9,0.55]
[1748132905705,0.8094,2530.8,2529.9,8.55]
[1748132906224,0.8094,2530.8,2530.0,0.7676]
[1748132906733,0.8094,2530.8,2530.1,0.37655846]
[1748132906900,0.8094,2530.8,2530.1,0.59289167]
[1748132907583,0.8094,2530.8,2530.3,8.0]
[1748132908015,0.8094,2530.8,2530.4,0.37655846]
[1748132908211,0.8094,2530.8,2530.5,11.829]
[1748132909311,0.05,2530.9,2530.6,8.0]
[1748132909515,0.05,2530.9,2530.7,1.93956969]
[1748132910927,0.7661,2530.8,2530.7,1.11866969]
[1748132911109,0.7661,2530.8,2530.3,0.46917369]
[1748132911310,0.7661,2530.8,2530.7,11.828]
[1748132912826,0.2,2530.8,2530.7,11.828]
[1748132913117,1.0055,2530.8,2530.7,11.828]
[1748132917506,1.0055,2530.8,2530.7,50.452]
[1748132918043,1.0055,2530.8,2530.7,35.483]
[1748132918207,0.7591,2530.7,2529.6,0.8209]
[1748132918539,0.7591,2530.7,2529.9,11.827]
[1748132918540,0.2,2530.6,2529.9,11.827]
[1748132919242,0.2,2530.6,2530.0,0.7686]
[1748132923332,0.9591,2530.7,2530.0,8.7686]
[1748132925739,0.2,2530.7,2530.0,8.7686]
[1748132926050,0.2,2530.7,2530.1,0.37497263]
[1748132927121,0.2,2530.7,2530.2,0.37497263]
[1748132927450,0.2,2530.7,2530.3,38.624]
[1748132927652,0.2,2530.7,2530.3,14.969]
[1748132928244,0.2,2530.7,2530.4,8.0]
[1748132928445,0.25,2530.9,2530.4,8.0]
[1748132928855,0.25,2530.9,2530.0,8.7686]
[1748132930667,0.25,2530.9,2530.1,0.37496275]
[1748132931668,0.25,2530.9,2530.2,0.37496275]
[1748132932228,0.25,2530.9,2530.4,0.7704]
[1748132932749,0.25,2530.9,2530.5,0.37496275]
[1748132933125,0.7642,2530.8,2530.6,11.827]
[1748132933369,0.7642,2530.8,2530.5,0.37496275]
[1748132933684,0.7642,2530.8,2530.7,11.827]
[1748132933883,0.7642,2530.8,2530.5,0.37496275]
[1748132934046,0.7642,2530.8,2530.6,11.826]
[1748132934377,0.7642,2530.8,2530.0,0.46917369]
[1748132934529,0.7642,2530.8,2530.0,0.6996536]
[1748132934728,0.7642,2530.8,2530.1,11.826]
[1748132935153,0.7642,2530.8,2530.2,8.37498392]
[1748132936336,0.7642,2530.8,2530.2,8.0]
[1748132936572,0.7642,2530.8,2530.4,8.0]
[1748132936789,0.7642,2530.8,2530.5,11.826]
[1748132937484,0.7642,2530.8,2530.6,26.789]
[1748132938034,0.7642,2530.8,2530.6,11.826]
[1748132943350,0.7642,2530.8,2530.7,11.826]
[1748132943945,0.2,2530.8,2530.0,0.23047991]
[1748132944146,0.2,2530.8,2530.1,11.826]
[1748132944147,0.8317,2530.7,2530.1,11.826]
[1748132944903,0.2,2530.6,2529.9,0.46917369]
[1748132945438,0.2,2530.6,2529.8,1.20680289]
[1748132945439,0.8317,2530.5,2530.0,12.20134546]
[1748132946585,0.8317,2530.5,2530.1,0.37534546]
[1748132947480,0.8317,2530.5,2530.2,50.442]
[1748132949668,0.8317,2530.5,2530.3,8.0]
[1748132951495,0.8317,2530.5,2530.4,11.827]
[1748132952120,0.8317,2530.5,2529.6,1.29717369]
[1748132952318,0.8317,2530.5,2529.8,8.0]
[1748132953233,0.8317,2530.5,2529.9,0.37531717]
[1748132953932,0.8317,2530.5,2530.0,0.03951913]
[1748132954238,0.8254,2530.8,2530.1,0.8029]
[1748132954633,0.8254,2530.8,2530.2,0.37531717]
[1748132955939,0.8254,2530.8,2530.3,0.37531717]
[1748132957052,0.8254,2530.8,2530.1,0.8029]
[1748132957349,0.8254,2530.8,2530.2,11.827]
[1748132957547,0.8254,2530.8,2530.3,39.8017]
[1748132958757,1.0254,2530.8,2530.3,39.8017]
[1748132959374,1.0254,2530.8,2530.4,26.791]
[1748132959658,1.0254,2530.8,2530.4,11.827]
[1748132959823,1.0254,2530.8,2530.3,1.1827]
[1748132960022,1.0254,2530.8,2530.5,11.827]
[1748132960859,1.0254,2530.8,2529.9,1.28267369]
[1748132961060,1.0254,2530.8,2530.0,11.827]
[1748132961417,1.0254,2530.8,2530.0,12.20202831]
[1748132962665,1.0254,2530.8,2530.2,0.7949]
[1748132962666,0.2,2530.8,2530.2,0.7949]
[1748132963931,0.2,2530.8,2530.3,0.37502831]
[1748132964934,0.2,2530.8,2530.4,11.827]
[1748132965274,0.2,2530.8,2530.4,12.20202831]
[1748132965473,0.2,2530.8,2530.4,0.37502831]
[1748132965639,0.2,2530.8,2530.5,11.827]
[1748132965841,0.2,2530.8,2530.5,12.20202831]
[1748132966042,0.2,2530.8,2530.5,0.37502831]
[1748132966254,0.2,2530.8,2530.6,11.827]
[1748132967086,0.2,2530.8,2530.5,0.37502831]
[1748132967283,0.2,2530.8,2530.6,11.826]
[1748132967482,0.25,2530.9,2530.7,50.437]
[1748132967689,0.25,2530.9,2530.8,14.959]
[1748132968389,0.25,2530.9,2530.8,11.826]
[1748132971395,0.25,2530.9,2530.2,0.7949]
[1748132971697,0.7836,2530.7,2530.3,11.826]
[1748132972104,0.7836,2530.5,2530.4,11.826]
[1748132973007,0.7836,2530.5,2529.6,0.87309065]
[1748132973192,0.2,2530.4,2529.7,11.825]
[1748132974283,0.7866,2530.3,2529.8,0.37494977]
[1748132974473,0.7866,2530.3,2529.9,11.825]
[1748132975479,0.7866,2530.3,2529.8,0.37494977]
[1748132975815,0.7866,2530.3,2529.9,11.825]
[1748132975993,0.7866,2530.3,2530.0,11.826]
[1748132976402,0.2,2530.2,2529.5,0.46917369]
[1748132976581,0.2,2530.2,2529.7,8.0]
[1748132977435,0.2,2530.2,2529.8,11.826]
[1748132977600,0.2,2530.2,2529.8,50.437]
[1748132977994,0.2,2530.2,2529.9,0.03952303]
[1748132978835,0.2,2530.2,2530.0,11.826]
[1748132980540,0.2,2530.2,2529.6,0.39193269]
[1748132980737,0.2,2530.2,2530.1,11.827]
[1748132984246,0.2,2530.2,2529.6,1.17824693]
[1748132984440,0.2,2530.2,2529.7,11.827]
[1748132987564,0.2,2530.2,2529.8,38.614]
[1748132988705,0.2,2530.2,2529.6,0.79]
[1748132988848,0.7834,2530.1,2529.9,26.787]
[1748132989169,0.2,2530.0,2529.3,1.27447369]
[1748132989392,0.2,2530.0,2529.4,12.20142857]
[1748132990492,0.2,2530.0,2529.5,0.41395324]
[1748132990810,0.2,2530.0,2529.6,11.827]
[1748132991974,0.2,2530.0,2529.7,11.828]
[1748132992495,0.2,2530.0,2529.4,0.39536506]
[1748132992809,0.2,2530.0,2529.5,11.828]
[1748132992985,0.2,2530.0,2529.6,1.55714712]
[1748132993506,0.2,2530.0,2529.7,11.828]
[1748132993675,0.2,2530.0,2529.6,0.37434712]
[1748132993877,0.779,2529.9,2529.6,0.37434712]
[1748132994175,0.2,2529.8,2529.7,11.828]
[1748132997588,0.2,2529.8,2529.7,50.447]
[1748132999903,0.2,2529.8,2529.7,26.79]
[1748133000891,0.2,2529.8,2529.7,11.829]
[1748133001316,0.2,2529.8,2529.3,0.40230587]
[1748133001481,0.2,2529.8,2529.1,1.25017369]
[1748133001679,0.2,2529.8,2529.2,11.829]
[1748133001895,0.2,2529.8,2529.3,8.0]
[1748133002300,0.2,2529.8,2529.4,0.781]
[1748133003499,0.2,2529.8,2529.6,0.7516]
[1748133005227,0.2,2529.8,2529.7,0.37498308]
[1748133005841,0.8104,2530.0,2529.7,12.20398308]
[1748133006437,0.8104,2530.0,2529.7,11.829]
[1748133007637,0.8104,2530.0,2529.8,38.613]
[1748133008104,0.8104,2530.0,2529.8,14.955]
[1748133008438,0.8104,2530.0,2529.9,11.829]
[1748133008644,0.8104,2530.0,2529.4,0.7516]
[1748133008846,0.2,2529.9,2529.3,0.46917369]
[1748133009154,0.8115,2529.8,2529.5,11.829]
[1748133009448,0.8115,2529.8,2529.6,11.829]
[1748133009832,0.8115,2529.8,2529.0,0.7796]
[1748133010034,0.8115,2529.8,2529.7,11.829]
[1748133010236,1.0115,2529.8,2529.0,0.7796]
[1748133010537,1.0115,2529.8,2529.7,11.829]
[1748133012501,0.2,2529.8,2529.7,11.829]
[1748133012701,0.2,2529.8,2529.7,13.0119]
[1748133014324,0.2,2529.8,2529.7,1.1829]
[1748133014538,0.2,2529.8,2529.7,12.20395366]
[1748133014768,0.8152,2530.1,2529.7,12.20395366]
[1748133015121,0.8152,2530.2,2529.7,0.37495366]
[1748133015326,0.8152,2530.2,2529.8,11.829]
[1748133017043,0.8152,2530.2,2529.1,0.8095]
[1748133017248,0.8152,2530.0,2529.9,11.829]
[1748133017443,1.0152,2530.0,2529.1,0.8095]
[1748133017643,1.0152,2530.0,2529.9,11.829]
[1748133021987,1.0152,2530.0,2529.1,0.8095]
[1748133022180,0.2,2529.9,2529.2,11.83]
[1748133022569,0.2,2529.9,2529.2,12.20514298]
[1748133023480,0.2,2529.9,2529.4,8.0]
[1748133023689,0.2,2529.9,2529.6,8.0]
[1748133025081,0.2,2529.9,2529.5,11.83]
[1748133025082,0.8152,2529.8,2529.7,11.83]
[1748133025386,1.0152,2529.8,2529.7,11.83]
[1748133026489,1.0152,2529.8,2529.1,0.8095]
[1748133026649,1.0152,2529.8,2529.7,11.83]
[1748133027461,1.0152,2529.8,2529.7,50.448]
[1748133028182,1.0152,2529.8,2529.7,43.823]
[1748133028402,1.0152,2529.8,2529.7,26.787]
[1748133030188,1.0152,2529.8,2529.7,11.83]
[1748133030906,1.0152,2529.8,2529.1,0.8095]
[1748133031063,0.2,2529.7,2529.2,11.831]
[1748133034515,0.2,2529.7,2529.3,8.0]
[1748133035976,0.2,2529.7,2528.9,0.8256]
[1748133036211,0.2,2529.7,2529.1,8.0]
[1748133037513,0.2,2529.7,2529.3,8.0]
[1748133037728,0.2,2529.7,2529.3,8.7888]
[1748133038394,0.2,2529.7,2529.3,0.7888]
[1748133041022,0.7709,2530.2,2529.4,0.03952824]
[1748133041322,0.7709,2530.2,2529.3,0.82832275]
[1748133041482,0.2,2530.3,2529.3,0.82832275]
[1748133041682,0.2,2530.3,2529.5,0.37528457]
[1748133041882,0.2,2530.3,2529.6,0.8283186]
[1748133042598,0.2,2530.3,2529.7,0.37528457]
[1748133042800,0.2,2530.4,2529.9,0.7785]
[1748133043526,0.2,2530.5,2529.9,0.7785]
[1748133045396,0.2,2530.5,2530.0,0.37472382]
[1748133046534,0.2,2530.5,2529.9,0.7785]
[1748133047076,1.0317,2530.7,2529.9,0.7785]
[1748133047539,1.0317,2530.7,2530.1,8.0]
[1748133048037,1.0317,2530.7,2529.9,0.7785]
[1748133049633,0.2,2530.7,2529.9,0.7785]
[1748133050041,0.2,2530.7,2530.0,0.37387131]
[1748133050729,0.804,2530.6,2530.2,8.0]
[1748133050941,0.2,2530.7,2530.3,0.7572]
[1748133051253,1.004,2530.8,2530.4,0.87572]
[1748133052029,0.2,2530.8,2530.5,0.03950936]
[1748133052589,0.05,2530.9,2530.5,0.79670855]
[1748133052882,0.05,2530.9,2530.7,0.7572]
[1748133053018,2.03726782,2531.9,2530.9,0.55]
[1748133053222,2.03726782,2531.9,2531.0,0.79669553]
[1748133053459,2.03726782,2531.9,2531.0,0.7572]
[1748133053818,0.05,2531.9,2531.0,0.7572]
[1748133054170,0.05,2531.9,2531.2,0.55]
[1748133054335,0.05,2531.9,2531.3,0.7572]
[1748133054659,0.05,2531.9,2531.4,11.827]
[1748133054844,0.05,2531.9,2531.5,0.71505539]
[1748133057417,0.05,2531.9,2531.7,8.0]
[1748133058826,0.05,2531.9,2531.5,8.71505539]
[1748133059677,0.05,2531.9,2531.6,0.7821]
[1748133060921,0.05,2531.9,2531.6,1.16655172]
[1748133061118,0.05,2531.9,2531.7,0.87572]
[1748133061366,0.7606,2531.8,2531.2,0.7821]
[1748133061665,0.7606,2531.8,2531.3,11.823]
[1748133061871,0.7606,2531.8,2530.4,0.7821]
[1748133062018,0.7606,2531.7,2530.6,0.55]
[1748133062225,0.7606,2531.7,2530.6,0.7821]
[1748133062631,0.7606,2531.7,2530.7,11.823]
[1748133063641,0.7606,2531.7,2530.8,0.825802]
[1748133063930,0.7606,2531.7,2530.9,8.0]
[1748133064279,0.7606,2531.7,2531.1,8.0]
[1748133064475,0.7606,2531.7,2530.5,0.7863]
[1748133064776,0.7606,2531.7,2531.2,11.823]
[1748133065855,0.7606,2531.7,2530.5,0.7863]
[1748133066057,0.8053,2531.5,2530.7,8.0]
[1748133066262,0.8053,2531.5,2530.9,8.0]
[1748133066848,0.8053,2531.5,2531.0,0.03950185]
[1748133067151,0.8053,2531.5,2531.0,0.82580185]
[1748133067560,0.8053,2531.5,2531.1,14.929]
[1748133067785,0.8053,2531.5,2531.2,0.83027468]
[1748133068171,0.8053,2531.5,2531.2,0.03949929]
[1748133068374,0.2,2531.6,2531.0,0.7863]
[1748133069289,0.05,2531.9,2531.1,0.03949725]
[1748133069478,0.8583,2531.9,2531.0,0.7863]
[1748133071175,0.8583,2531.9,2531.1,11.822]
[1748133071386,0.8583,2531.9,2531.3,8.0]
[1748133072494,0.8583,2531.9,2531.4,11.822]
[1748133073588,0.8083,2531.7,2531.4,11.822]
[1748133075069,0.2,2531.8,2531.4,11.822]
[1748133076713,0.2,2531.8,2531.5,0.80179153]
[1748133077606,0.2,2531.8,2531.6,38.573]
[1748133078409,0.2,2531.8,2531.7,26.748]
[1748133078709,0.9575,2531.8,2531.7,26.748]
[1748133080205,0.9575,2531.8,2531.7,11.821]
[1748133080370,0.7575,2531.7,2530.8,0.8101]
[1748133080571,0.7575,2531.5,2530.9,11.821]
[1748133081166,0.7575,2531.5,2531.0,0.37350954]
[1748133081367,0.2,2531.6,2531.1,0.8101]
[1748133081569,0.2,2531.6,2531.2,0.03950034]
[1748133081979,0.2,2531.6,2531.1,0.8101]
[1748133083824,0.2,2531.6,2531.4,0.8145]
[1748133084028,0.05,2531.9,2531.4,0.8145]
[1748133084809,0.05,2531.9,2531.5,0.37384636]
[1748133084986,0.05,2531.9,2531.5,0.59459837]
[1748133085772,0.05,2531.9,2531.6,0.37384636]
[1748133086111,0.05,2531.9,2531.6,0.75937998]
[1748133086308,0.05,2531.9,2531.6,0.37384636]
[1748133086888,0.05,2531.9,2531.7,0.37384636]
[1748133087489,0.05,2531.9,2531.8,46.566]
[1748133088425,0.05,2531.9,2531.8,8.0]
[1748133088921,0.05,2531.9,2531.8,9.13694636]
[1748133089225,0.05,2531.9,2531.8,9.68694636]
[1748133090241,0.05,2531.9,2531.8,10.15612005]
[1748133091683,0.05,2531.9,2531.8,9.60612005]
[1748133091888,0.05,2531.9,2531.8,1.90526071]
[1748133092230,0.8437,2531.9,2531.8,12.66302005]
[1748133092405,0.8437,2531.9,2531.8,20.66302005]
[1748133093127,0.8437,2531.9,2531.8,19.82]
[1748133093946,0.05,2531.9,2531.8,20.6414]
[1748133095112,0.05,2531.9,2531.8,21.1914]
[1748133095425,0.05,2531.9,2531.8,21.56398414]
[1748133096544,0.05,2531.9,2531.8,22.03315783]
[1748133097457,0.05,2531.9,2531.8,28.65115783]
[1748133097624,0.05,2531.9,2531.8,60.59015783]
[1748133099101,0.05,2531.9,2531.8,9.66315783]
[1748133099429,0.05,2531.9,2531.8,8.37258414]
[1748133099631,0.05,2531.9,2531.8,20.19058414]
[1748133101255,0.05,2532.9,2531.9,0.55]
[1748133101256,0.777,2532.5,2531.9,0.55]
[1748133101548,0.05,2532.9,2531.9,0.55]
[1748133101549,0.777,2532.8,2531.9,0.55]
[1748133101755,0.777,2532.8,2531.9,0.5894802]
[1748133101926,0.777,2532.8,2531.9,0.55]
[1748133102127,0.777,2532.8,2532.1,0.55]
[1748133103057,0.777,2532.8,2532.0,0.8214]
[1748133103272,0.757,2532.6,2531.8,0.46917369]
[1748133103487,0.757,2532.6,2532.2,8.0]
[1748133103672,0.757,2532.6,2532.3,11.817]
[1748133103899,0.757,2532.6,2531.6,0.39487835]
[1748133104045,0.757,2532.6,2531.5,0.46917369]
[1748133104240,0.757,2532.5,2531.5,0.46917369]
[1748133104485,0.757,2532.5,2531.6,11.817]
[1748133104685,0.757,2532.5,2531.5,0.46917369]
[1748133105054,0.757,2532.5,2531.6,11.817]
[1748133105256,0.55,2532.4,2531.0,0.8222]
[1748133105479,0.757,2532.3,2531.2,8.0]
[1748133105836,8.0,2532.8,2531.2,8.0]
[1748133105837,0.757,2532.8,2531.3,0.58949808]
[1748133106037,0.05,2532.9,2531.4,1.3722]
[1748133106261,0.757,2532.8,2531.6,8.0]
[1748133106461,0.757,2532.8,2531.5,0.8222]
[1748133106877,0.757,2532.8,2531.6,11.817]
[1748133107175,0.757,2532.8,2531.7,11.817]
[1748133107562,0.757,2532.8,2531.8,38.554]
[1748133108974,0.757,2532.8,2531.8,14.919]
[1748133109669,0.757,2532.8,2531.7,11.817]
[1748133110470,0.757,2532.8,2531.8,8.3721072]
[1748133111308,0.757,2532.8,2531.9,0.03948793]
[1748133111510,0.757,2532.8,2531.8,8.3721072]
[1748133111868,0.757,2532.8,2531.8,8.0]
[1748133112862,0.757,2532.8,2531.9,0.41203175]
[1748133113066,0.757,2532.8,2531.9,0.3725438]
[1748133113567,0.757,2532.8,2532.0,0.0394877]
[1748133113803,0.757,2532.8,2531.9,0.3725438]
[1748133114006,0.757,2532.8,2531.8,8.0]
[1748133117216,0.757,2532.8,2531.9,0.37272625]
[1748133117525,0.757,2532.8,2532.1,8.0]
[1748133119426,0.757,2532.8,2531.8,8.0]
[1748133120926,0.757,2532.8,2531.4,0.62882252]
[1748133121128,0.757,2532.8,2531.9,0.37275666]
[1748133121704,0.757,2532.8,2532.0,11.818]
[1748133121905,0.757,2532.8,2532.1,11.818]
[1748133122305,0.757,2532.8,2532.2,11.818]
[1748133122505,0.7886,2532.6,2532.2,11.818]
[1748133123839,0.7886,2532.6,2531.6,0.38721645]
[1748133124038,0.7886,2532.4,2531.7,11.818]
[1748133124825,0.7886,2532.4,2531.9,8.0]
[1748133127512,0.7886,2532.4,2532.0,26.859]
[1748133127711,0.7886,2532.4,2532.0,11.818]
[1748133129427,0.2,2532.3,2532.0,11.818]
[1748133130556,0.7703,2532.2,2532.0,11.818]
[1748133132779,0.7703,2532.2,2531.2,0.46917369]
[1748133133003,0.7703,2532.2,2531.3,11.819]
[1748133133144,0.7703,2532.2,2531.3,12.19274691]
[1748133134470,0.7703,2532.2,2531.4,0.37374691]
[1748133135346,0.2,2532.1,2531.4,0.37374691]
[1748133135661,0.8026,2532.0,2531.4,0.37374691]
[1748133136004,1.0026,2531.9,2531.5,11.819]
[1748133136149,0.8026,2531.7,2531.4,0.37374691]
[1748133136349,0.8026,2531.7,2531.5,11.819]
[1748133137598,0.8026,2531.7,2531.6,38.682]
[1748133137918,0.8026,2531.7,2531.6,26.863]
[1748133138126,0.8026,2531.7,2531.6,11.82]
[1748133138976,0.8026,2531.7,2530.8,0.46917369]
[1748133139178,0.2,2531.6,2530.9,11.82]
[1748133139916,0.8309,2531.5,2530.8,0.46917369]
[1748133140117,0.8309,2531.5,2531.0,11.82]
[1748133140581,0.8309,2531.5,2531.1,11.82]
[1748133140998,0.8309,2531.5,2531.2,11.82]
[1748133141228,0.8309,2531.5,2530.9,0.37401806]
[1748133141530,0.8309,2531.5,2531.3,11.82]
[1748133141728,0.8309,2531.5,2531.0,0.37401806]
[1748133142076,1.0309,2531.4,2531.1,11.821]
[1748133142903,1.0309,2531.4,2531.2,8.0]
[1748133144430,1.0309,2531.4,2530.4,1.26287369]
[1748133144585,1.0309,2531.4,2531.3,19.821]
[1748133147534,1.0309,2531.4,2531.3,58.51]
[1748133150405,1.0309,2531.4,2531.3,11.822]
[1748133150602,1.0309,2531.4,2530.5,0.46917369]
[1748133150907,0.55,2531.9,2530.6,11.822]
[1748133150908,0.7522,2531.2,2530.6,11.822]
[1748133151121,0.7522,2531.0,2530.6,11.822]
[1748133151329,0.7522,2530.8,2530.6,11.822]
[1748133151939,0.7522,2530.8,2530.7,11.822]
[1748133152142,0.7522,2530.8,2530.1,0.05]
[1748133152444,0.7522,2530.8,2530.7,11.822]
[1748133153871,1.5534,2530.7,2530.1,0.05]
[1748133154044,0.8034,2530.4,2530.2,11.823]
[1748133154239,1.0034,2530.3,2530.2,11.823]
[1748133157546,1.0034,2530.3,2530.2,26.77]
[1748133159083,1.0034,2530.3,2530.2,11.823]
[1748133160054,1.0034,2530.3,2530.1,0.05]
[1748133160261,1.0034,2530.3,2530.2,11.826]
[1748133163088,1.0034,2530.3,2530.1,0.05]
[1748133163381,1.0034,2530.3,2530.2,11.827]
[1748133165200,1.0034,2530.3,2530.2,11.828]
[1748133167098,1.0034,2530.3,2530.1,0.05]
[1748133167397,1.0034,2530.3,2530.2,11.828]
[1748133167603,1.0034,2530.3,2530.2,26.779]
[1748133169912,1.0034,2530.3,2530.2,11.828]
[1748133170873,1.3471,2530.2,2530.1,0.05]
[1748133171077,1.3471,2530.2,2530.1,11.879]
[1748133171990,1.3471,2530.2,2530.1,0.05]
[1748133172376,1.3471,2530.2,2530.1,11.879]
[1748133173483,1.3471,2530.2,2530.1,0.05]
[1748133173784,1.3471,2530.2,2530.1,11.879]
[1748133176515,1.3471,2530.2,2530.1,0.05]
[1748133176821,1.5471,2530.2,2530.1,11.88]
[1748133177642,1.5471,2530.2,2530.1,50.492]
[1748133178550,0.9971,2530.2,2530.1,26.833]
[1748133178713,0.2,2530.2,2530.1,26.833]
[1748133179313,0.2,2530.2,2530.1,11.88]
[1748133182659,0.2,2530.3,2530.1,11.88]
[1748133184425,0.55,2530.2,2530.1,0.05]
[1748133184625,1.57046097,2530.2,2530.1,11.88]
[1748133185740,1.57046097,2530.2,2530.1,0.05]
[1748133185946,1.57046097,2530.2,2530.1,11.88]
[1748133186965,2.94207066,2530.2,2530.1,0.05]
[1748133187166,0.15,2530.0,2529.2,0.7679]
[1748133187367,0.8083,2529.9,2529.4,8.0]
[1748133187576,0.8083,2529.9,2529.5,38.605]
[1748133188476,0.8083,2529.9,2529.6,11.83]
[1748133191297,0.8083,2529.9,2529.2,0.7679]
[1748133191500,0.1,2529.8,2529.7,11.831]
[1748133192139,0.32799097,2529.8,2529.7,11.831]
[1748133194102,0.32799097,2529.8,2529.2,0.7679]
[1748133194306,0.32799097,2529.8,2529.3,11.831]
[1748133194307,1.69960066,2529.8,2529.3,11.831]
[1748133194453,0.8064,2529.7,2529.3,11.831]
[1748133195352,0.8064,2529.7,2529.4,11.831]
[1748133195576,0.25060007,2529.6,2529.4,11.831]
[1748133195778,0.1,2529.5,2529.4,11.831]
[1748133196081,0.1,2529.5,2529.1,0.05]
[1748133196282,0.1,2529.5,2529.2,11.831]
[1748133197492,1.4564,2529.4,2529.3,14.946]
[1748133197789,1.4564,2529.4,2529.3,26.778]
[1748133197948,2.76420097,2529.4,2529.3,26.778]
[1748133198461,2.76420097,2529.4,2529.3,11.832]
[1748133199786,0.1,2529.4,2529.3,11.832]
[1748133205211,0.1,2529.4,2529.3,12.5887]
[1748133205361,0.1,2529.9,2529.3,19.832]
[1748133205563,0.1,2529.9,2529.4,0.7567]
[1748133205763,0.1,2529.9,2529.4,8.0]
[1748133205961,0.1,2529.9,2529.6,0.7567]
[1748133206202,0.1,2529.9,2529.8,0.7567]
[1748133207481,0.1,2529.9,2529.8,23.7037]
[1748133208431,0.1,2529.9,2529.8,15.7268]
[1748133208723,0.1,2529.9,2529.8,0.7798]
[1748133209125,0.1,2530.3,2529.8,0.7798]
[1748133213815,0.1,2530.3,2529.9,11.83]
[1748133214445,0.1,2530.3,2530.0,0.8032]
[1748133215134,0.1,2530.3,2530.2,0.8032]
[1748133217460,0.1,2530.3,2530.2,15.7422]
[1748133219462,0.1,2530.3,2530.2,0.8032]
[1748133220754,0.1,2531.2,2530.2,0.8032]
[1748133220938,2.01399,2531.2,2530.3,11.829]
[1748133221270,0.1,2531.1,2530.4,0.8181]
[1748133221485,0.1,2531.1,2530.4,0.85760994]
[1748133221776,0.1,2531.1,2530.4,0.8181]
[1748133222074,0.1,2531.1,2529.6,0.39616144]
[1748133222075,1.37160969,2530.9,2530.1,0.8181]
[1748133222253,0.7637,2530.8,2530.2,11.828]
[1748133222453,0.31353097,2530.7,2529.9,0.8181]
[1748133222663,0.7684,2530.6,2530.0,11.828]
[1748133223265,0.7684,2530.6,2530.1,11.828]
[1748133224795,1.37160969,2530.5,2529.2,0.7933]
[1748133225089,0.7684,2530.4,2529.4,8.0]